bitfinex/quotes_SOLUSD_20241118
["timestamp","ask_amount","ask_price","bid_price","bid_amount"]
[1731943085301,43.776884,243.01,242.94,19.48598236]
[1731943086309,20.0,242.97,242.92,19.48598236]
[1731943086498,4.1153,242.99,242.94,19.48598236]
[1731943086698,43.776884,243.01,242.96,19.48598236]
[1731943086699,27.891984,243.01,242.96,19.48598236]
[1731943087012,16.7168,243.04,242.98,19.48598236]
[1731943087208,16.7168,243.04,242.96,19.48598236]
[1731943087398,19.57965698,243.02,242.92,19.48598236]
[1731943087793,19.48598236,242.98,242.88,19.48598236]
[1731943087999,0.09367462,242.99,242.84,19.48598236]
[1731943088000,23.902374,242.93,242.84,19.48598236]
[1731943088396,0.21916462,242.9,242.82,19.48598236]
[1731943088596,70.0,242.96,242.78,14.50977462]
[1731943088597,0.12549,242.99,242.89,19.48598236]
[1731943088921,0.21916462,242.98,242.89,19.48598236]
[1731943089091,0.21916462,242.94,242.85,19.48598236]
[1731943089295,20.12549,242.96,242.8,14.415]
[1731943089296,43.38835636,242.91,242.83,19.48598236]
[1731943089495,20.0,242.9,242.83,19.48598236]
[1731943089904,0.12549,242.89,242.83,19.48598236]
[1731943090418,4.1172,242.88,242.85,19.48598236]
[1731943091408,4.1172,242.88,242.81,19.48598236]
[1731943091799,4.1172,242.88,242.83,19.48598236]
[1731943093297,0.12549,242.87,242.83,19.48598236]
[1731943094400,20.0,242.88,242.83,19.48598236]
[1731943094603,0.12549,242.87,242.83,19.48598236]
[1731943095113,4.117,242.89,242.83,19.48598236]
[1731943096205,23.902374,242.88,242.83,19.48598236]
[1731943096414,23.902374,242.88,242.78,0.09367462]
[1731943096415,24.027864,242.86,242.78,19.57965698]
[1731943096616,20.21916462,242.85,242.78,19.57965698]
[1731943096816,23.902374,242.84,242.78,0.09367462]
[1731943097210,23.902374,242.84,242.78,19.57965698]
[1731943097418,23.776884,242.88,242.83,19.48598236]
[1731943097732,4.117,242.89,242.85,19.48598236]
[1731943098409,4.117,242.89,242.83,19.48598236]
[1731943098601,0.09367462,242.86,242.78,0.09367462]
[1731943098826,20.0,242.87,242.81,19.48598236]
[1731943099135,0.12549,242.86,242.81,19.48598236]
[1731943099425,20.0,242.87,242.81,19.48598236]
[1731943099765,20.12549,242.88,242.81,19.48598236]
[1731943100637,23.902374,242.82,242.78,0.09367462]
[1731943101429,20.0,242.84,242.79,19.48598236]
[1731943101628,0.12549,242.83,242.79,19.48598236]
[1731943102639,4.1182,242.82,242.79,19.48598236]
[1731943104136,10.2935,242.87,242.79,19.48598236]
[1731943104137,4.117,242.89,242.81,19.48598236]
[1731943104335,4.117,242.89,242.85,19.48598236]
[1731943106234,4.1159,242.96,242.87,19.48598236]
[1731943106538,4.1159,242.96,242.89,19.48598236]
[1731943107215,0.09367462,242.93,242.85,19.48598236]
[1731943107418,24.12153862,242.89,242.81,19.48598236]
[1731943107830,23.902374,242.89,242.81,19.48598236]
[1731943108028,23.902374,242.89,242.78,14.50987462]
[1731943108029,20.12549,242.89,242.83,19.48598236]
[1731943108419,20.12549,242.93,242.85,19.48598236]
[1731943108845,0.12549,242.91,242.85,19.48598236]
[1731943109632,4.1169,242.9,242.85,19.48598236]
[1731943109836,23.776884,242.92,242.85,19.48598236]
[1731943110033,4.1163,242.94,242.87,19.48598236]
[1731943110233,0.12549,242.93,242.87,19.48598236]
[1731943110434,4.116,242.96,242.89,19.48598236]
[1731943111135,23.60168236,242.98,242.89,19.48598236]
[1731943112213,23.60168236,242.98,242.89,23.60298236]
[1731943112414,23.60168236,242.98,242.81,21.0922]
[1731943112415,19.48598236,242.93,242.84,19.48598236]
[1731943112614,19.48598236,242.91,242.83,14.4131]
[1731943112840,19.48598236,242.91,242.82,19.48598236]
[1731943112841,0.12549,242.88,242.82,19.48598236]
[1731943113028,0.12549,242.88,242.67,20.6035]
[1731943113029,23.902374,242.86,242.78,19.57965698]
[1731943113220,23.902374,242.84,242.78,0.09367462]
[1731943113543,23.902374,242.82,242.78,0.09367462]
[1731943115452,4.1184,242.81,242.78,0.09367462]
[1731943115940,0.12549,242.8,242.78,0.09367462]
[1731943116241,93.60752098,242.79,242.78,0.09367462]
[1731943116837,100.33722098,242.79,242.78,0.09367462]
[1731943117419,104.45592098,242.79,242.78,0.09367462]
[1731943118039,70.0,242.66,242.53,10.3078]
[1731943118223,0.12549,242.61,242.5,4.1237]
[1731943118429,0.12549,242.61,242.54,19.48598236]
[1731943118725,30.0,242.64,242.57,19.48598236]
[1731943118925,0.12549,242.66,242.59,19.48598236]
[1731943119128,23.902374,242.67,242.59,19.48598236]
[1731943119323,0.09367462,242.65,242.57,19.48598236]
[1731943119532,28.023274,242.67,242.59,19.48598236]
[1731943119729,28.023274,242.67,242.61,19.48598236]
[1731943120546,160.0,242.74,242.54,0.5]
[1731943120547,19.48598236,242.73,242.65,19.48598236]
[1731943120852,4.1199,242.72,242.65,19.48598236]
[1731943121139,6.5125,242.74,242.65,19.48598236]
[1731943121436,40.07318236,242.75,242.67,19.48598236]
[1731943122267,0.09367462,242.74,242.67,19.48598236]
[1731943122743,0.21916462,242.72,242.64,10.3031]
[1731943122948,0.12549,242.7,242.61,23.60768236]
[1731943123238,19.48598236,242.69,242.61,19.48598236]
[1731943123459,0.21916462,242.64,242.57,19.48598236]
[1731943123742,0.12549,242.62,242.54,10.3075]
[1731943123938,0.12549,242.62,242.54,14.4305]
[1731943124140,30.12549,242.62,242.55,19.48598236]
[1731943124345,30.0,242.62,242.55,19.48598236]
[1731943124713,30.0,242.62,242.57,19.48598236]
[1731943125441,30.0,242.62,242.55,19.48598236]
[1731943125643,30.0,242.62,242.55,23.60878236]
[1731943126152,34.1217,242.62,242.55,19.48598236]
[1731943126322,30.0,242.62,242.55,19.48598236]
[1731943126526,30.0,242.62,242.55,23.60868236]
[1731943127044,34.1217,242.62,242.55,19.48598236]
[1731943127840,0.12549,242.61,242.55,19.48598236]
[1731943128048,30.12549,242.61,242.55,19.48598236]
[1731943128247,0.12549,242.61,242.55,19.48598236]
[1731943128738,43.38835636,242.61,242.5,19.48598236]
[1731943129054,43.38835636,242.61,242.5,23.60958236]
[1731943129221,0.12549,242.61,242.55,19.48598236]
[1731943131246,30.0,242.6,242.57,19.48598236]
[1731943132048,30.0,242.6,242.53,23.60908236]
[1731943132417,30.0,242.6,242.53,23.10908236]
[1731943133250,34.122,242.6,242.53,23.10908236]
[1731943134053,30.0,242.6,242.55,19.48598236]
[1731943135345,30.0,242.6,242.55,23.60868236]
[1731943135732,30.0,242.6,242.55,19.48598236]
[1731943136647,34.1221,242.6,242.53,14.4311]
[1731943136852,19.61147236,242.59,242.49,19.48598236]
[1731943137039,19.48598236,242.55,242.48,10.3098]
[1731943137233,19.48598236,242.55,242.48,14.4338]
[1731943137635,23.60878236,242.55,242.48,14.4338]
[1731943138030,30.0,242.54,242.48,10.3098]
[1731943138453,30.0,242.54,242.49,19.48598236]
[1731943139038,0.12549,242.53,242.47,19.48598236]
[1731943139547,23.60928236,242.52,242.43,29.79788236]
[1731943139787,19.48598236,242.5,242.41,19.48598236]
[1731943140053,10.696,242.54,242.47,19.48598236]
[1731943140563,30.18198236,242.54,242.45,19.48598236]
[1731943140742,19.48598236,242.5,242.41,19.48598236]
[1731943140940,10.696,242.54,242.46,19.48598236]
[1731943141149,10.696,242.54,242.36,2.81382945]
[1731943141150,20.12549,242.47,242.36,2.81382945]
[1731943141366,19.48598236,242.43,242.32,4.1266]
[1731943141562,19.48598236,242.41,242.32,23.61258236]
[1731943142252,30.0,242.4,242.32,23.61258236]
[1731943142464,30.0,242.4,242.31,10.3173]
[1731943142667,19.48598236,242.33,242.19,16.7527]
[1731943142851,19.48598236,242.31,242.21,19.48598236]
[1731943143168,24.027864,242.36,242.26,19.48598236]
[1731943143377,23.902374,242.34,242.26,19.48598236]
[1731943143554,179.48598236,242.37,242.28,19.48598236]
[1731943143869,0.09367462,242.35,242.26,19.48598236]
[1731943144069,0.09367462,242.35,242.21,14.4499]
[1731943144070,23.902374,242.36,242.28,19.48598236]
[1731943144373,164.1259,242.37,242.3,19.48598236]
[1731943144674,164.1259,242.37,242.28,19.48598236]
[1731943145975,23.61188236,242.37,242.28,19.48598236]
[1731943146179,19.48598236,242.33,242.25,10.3195]
[1731943146475,19.48598236,242.35,242.26,19.48598236]
[1731943146771,23.61188236,242.37,242.26,19.48598236]
[1731943147389,30.0,242.3,242.24,19.48598236]
[1731943147550,30.0,242.3,242.22,19.48598236]
[1731943148481,19.48598236,242.31,242.2,33.93658236]
[1731943148976,19.48598236,242.31,242.14,17.171]
[1731943148977,19.48598236,242.23,242.15,10.3241]
[1731943149270,19.48598236,242.25,242.15,14.4537]
[1731943149454,4.1281,242.24,242.16,19.48598236]
[1731943150556,4.1281,242.24,242.15,10.3241]
[1731943150757,4.1281,242.24,242.15,29.81008236]
[1731943151464,4.1281,242.24,242.17,19.48598236]
[1731943151664,4.1278,242.26,242.17,19.48598236]
[1731943153174,23.61358236,242.27,242.17,33.93848236]
[1731943153781,19.48598236,242.25,242.17,29.80928236]
[1731943154153,23.61358236,242.27,242.17,33.93858236]
[1731943155082,6.7637,242.28,242.21,19.48598236]
[1731943155265,6.7637,242.28,242.17,14.4526]
[1731943155266,6.7637,242.28,242.19,19.48598236]
[1731943155652,6.8471,242.33,242.25,19.48598236]
[1731943155856,6.8471,242.33,242.18,20.09367462]
[1731943155857,6.8471,242.33,242.27,19.48598236]
[1731943156060,23.61188236,242.37,242.29,19.48598236]
[1731943156957,23.61188236,242.37,242.28,4.1273]
[1731943157161,19.48598236,242.29,242.2,23.61478236]
[1731943157675,19.48598236,242.31,242.22,19.48598236]
[1731943157851,23.902374,242.3,242.22,19.48598236]
[1731943158256,19.48598236,242.29,242.2,23.61478236]
[1731943158470,4.1274,242.28,242.2,23.61478236]
[1731943158658,24.1274,242.28,242.2,23.61478236]
[1731943160380,24.1274,242.28,242.19,10.3224]
[1731943160582,4.1274,242.28,242.19,10.3224]
[1731943160781,4.1274,242.28,242.2,19.48598236]
[1731943161078,4.1274,242.28,242.22,19.48598236]
[1731943161457,24.1271,242.3,242.22,19.48598236]
[1731943161660,4.1269,242.32,242.24,19.48598236]
[1731943161865,4.1265,242.34,242.26,19.48598236]
[1731943162481,4.1265,242.34,242.24,19.48598236]
[1731943162784,19.48598236,242.33,242.24,19.48598236]
[1731943162956,4.1265,242.34,242.24,19.48598236]
[1731943163154,23.61248236,242.34,242.24,19.48598236]
[1731943163591,23.61248236,242.34,242.26,19.48598236]
[1731943163898,19.48598236,242.3,242.2,29.80768236]
[1731943164194,0.12549,242.29,242.2,29.80768236]
[1731943164375,19.48598236,242.32,242.22,19.48598236]
[1731943164570,19.48598236,242.3,242.22,19.48598236]
[1731943164987,19.48598236,242.3,242.2,33.93648236]
[1731943165372,0.12549,242.29,242.2,33.93648236]
[1731943165572,4.1274,242.28,242.2,33.93648236]
[1731943165892,23.61338236,242.28,242.18,19.48598236]
[1731943166081,19.48598236,242.24,242.14,19.48598236]
[1731943166280,19.48598236,242.22,242.12,33.94148236]
[1731943167169,19.48598236,242.24,242.14,19.48598236]
[1731943167373,0.21916462,242.23,242.14,19.48598236]
[1731943167786,4.1284,242.22,242.14,23.61568236]
[1731943170887,4.1284,242.22,242.14,33.94028236]
[1731943171685,169.95686423,242.27,242.16,19.48598236]
[1731943171686,19.48598236,242.26,242.16,19.48598236]
[1731943171881,20.0,242.26,242.18,19.48598236]
[1731943172188,20.0,242.26,242.2,19.48598236]
[1731943172586,20.0,242.26,242.2,23.61458236]
[1731943173209,20.0,242.26,242.2,4.1286]
[1731943174015,24.1278,242.26,242.2,4.1286]
[1731943174382,43.61378236,242.26,242.19,10.3224]
[1731943174583,0.12549,242.25,242.16,23.61538236]
[1731943175093,0.12549,242.25,242.18,19.48598236]
[1731943175406,43.61378236,242.26,242.18,19.48598236]
[1731943176377,43.61378236,242.26,242.18,23.61498236]
[1731943178204,24.1278,242.26,242.08,16.8477]
[1731943178391,36.41092952,242.26,242.16,12.28312952]
[1731943179000,12.28312952,242.24,242.16,12.28312952]
[1731943179305,12.28312952,242.24,242.14,12.28312952]
[1731943179612,0.12549,242.25,242.16,12.28312952]
[1731943180204,16.41122952,242.24,242.16,4.1294]
[1731943180808,16.41122952,242.24,242.16,26.73622952]
[1731943181004,4.1281,242.24,242.16,26.73622952]
[1731943181793,36.41092952,242.26,242.18,12.28312952]
[1731943182391,36.41092952,242.26,242.16,26.73622952]
[1731943186613,36.41092952,242.26,242.18,12.28312952]
[1731943186797,36.41092952,242.26,242.16,12.28312952]
[1731943187712,36.41092952,242.26,242.17,4.1293]
[1731943189599,36.41092952,242.26,242.17,14.4526]
[1731943190124,36.41092952,242.26,242.18,12.28312952]
[1731943190624,36.41092952,242.26,242.19,4.1289]
[1731943191001,24.1278,242.26,242.19,14.4513]
[1731943191501,17.2358,242.34,242.24,12.28312952]
[1731943191717,17.2358,242.34,242.19,14.4513]
[1731943191718,17.2358,242.34,242.26,12.28312952]
[1731943192294,10.8216,242.35,242.26,12.28312952]
[1731943192491,23.10472952,242.35,242.26,12.28312952]
[1731943192705,23.10472952,242.35,242.27,4.1276]
[1731943192917,20.0,242.34,242.27,4.1276]
[1731943193611,16.40932952,242.35,242.27,14.4466]
[1731943194009,12.28312952,242.35,242.27,14.4466]
[1731943194314,16.40862952,242.39,242.3,12.28312952]
[1731943194722,16.40862952,242.39,242.3,16.41022952]
[1731943195224,20.0,242.38,242.3,16.41022952]
[1731943195805,20.0,242.38,242.3,26.72792952]
[1731943196012,6.7847,242.4,242.34,12.28312952]
[1731943196201,17.2358,242.42,242.36,12.28312952]
[1731943196426,12.28312952,242.43,242.34,12.28312952]
[1731943197515,16.40802952,242.43,242.35,4.1262]
[1731943198023,12.28312952,242.38,242.29,26.72812952]
[1731943198716,32.28312952,242.4,242.31,12.28312952]
[1731943199200,4.1255,242.39,242.32,4.1267]
[1731943199398,4.1255,242.39,242.31,12.28312952]
[1731943199703,12.28312952,242.38,242.31,4.1269]
[1731943200227,12.28312952,242.36,242.27,12.28312952]
[1731943200525,20.12549,242.37,242.25,12.28312952]
[1731943200526,12.28312952,242.34,242.25,12.28312952]
[1731943200904,0.12549,242.37,242.29,12.28312952]
[1731943201222,4.126,242.36,242.29,16.41032952]
[1731943201425,12.28312952,242.38,242.29,16.41032952]
[1731943201632,0.09367462,242.42,242.29,16.41032952]
[1731943201633,12.28312952,242.42,242.31,12.28312952]
[1731943201829,12.28312952,242.42,242.34,12.28312952]
[1731943202125,24.1249,242.43,242.34,12.28312952]
[1731943202302,4.1249,242.43,242.34,12.28312952]
[1731943202708,4.1249,242.43,242.34,16.40952952]
[1731943203316,12.28312952,242.42,242.34,16.40952952]
[1731943204035,6.6004,242.45,242.25,21.1393]
[1731943204036,12.28312952,242.4,242.31,4.1268]
[1731943204329,12.28312952,242.42,242.32,12.28312952]
[1731943204503,12.28312952,242.4,242.32,12.28312952]
[1731943204706,20.0,242.39,242.31,4.1268]
[1731943204916,12.28312952,242.36,242.26,12.28312952]
[1731943205130,12.28312952,242.32,242.24,12.28312952]
[1731943205610,20.0,242.31,242.24,12.28312952]
[1731943205929,4.1271,242.3,242.23,14.449]
[1731943206133,4.1271,242.3,242.23,10.3207]
[1731943206309,20.12549,242.29,242.2,12.28312952]
[1731943206512,20.0,242.29,242.22,12.28312952]
[1731943206707,7.201,242.33,242.24,12.28312952]
[1731943206921,20.0,242.32,242.26,12.28312952]
[1731943207114,24.1264,242.34,242.26,12.28312952]
[1731943207545,12.28312952,242.29,242.2,12.28312952]
[1731943207829,4.1274,242.28,242.2,12.28312952]
[1731943208042,20.0,242.32,242.24,12.28312952]
[1731943208338,20.0,242.34,242.26,12.28312952]
[1731943208745,20.0,242.3,242.22,12.28312952]
[1731943209223,4.22037462,242.33,242.19,10.3224]
[1731943209224,20.0,242.32,242.24,12.28312952]
[1731943209854,16.40952952,242.35,242.26,12.28312952]
[1731943210144,4.126,242.37,242.3,12.28312952]
[1731943210343,16.40912952,242.37,242.28,12.28312952]
[1731943210646,12.28312952,242.33,242.24,12.28312952]
[1731943211221,16.40912952,242.37,242.28,12.28312952]
[1731943211421,23.902374,242.36,242.28,12.28312952]
[1731943211827,23.776884,242.36,242.28,12.28312952]
[1731943212153,16.40912952,242.37,242.28,16.41042952]
[1731943212441,20.0,242.36,242.28,16.41042952]
[1731943213147,16.40952952,242.35,242.28,4.1273]
[1731943214224,20.0,242.36,242.28,16.41042952]
[1731943214443,20.0,242.36,242.3,12.28312952]
[1731943214648,6.7358,242.39,242.33,12.28312952]
[1731943214945,4.1256,242.39,242.33,12.28312952]
[1731943215150,4.1253,242.41,242.33,12.28312952]
[1731943215445,19.20122952,242.44,242.35,12.28312952]
[1731943215645,4.1251,242.42,242.35,12.28312952]
[1731943215951,187.4118,242.48,242.28,34.33572952]
[1731943215952,16.40752952,242.46,242.39,12.28312952]
[1731943216169,16.40752952,242.46,242.37,12.28312952]
[1731943216329,33.50842952,242.48,242.39,12.28312952]
[1731943217447,30.0,242.4,242.39,12.28312952]
[1731943217860,24.1243,242.47,242.4,4.1254]
[1731943218436,30.0,242.41,242.4,4.1254]
[1731943219068,30.0,242.41,242.33,22.59932952]
[1731943219356,34.1252,242.41,242.33,22.59932952]
[1731943219553,34.1252,242.41,242.3,4.1271]
[1731943219554,20.0,242.37,242.29,12.28312952]
[1731943219754,42.28312952,242.36,242.27,12.28312952]
[1731943219958,12.28312952,242.32,242.22,4.1283]
[1731943220270,12.28312952,242.3,242.21,22.60472952]
[1731943220447,20.0,242.29,242.21,10.3216]
[1731943220643,42.28312952,242.28,242.21,10.3216]
[1731943220849,42.28312952,242.28,242.19,12.28312952]
[1731943221050,4.1276,242.27,242.19,12.28312952]
[1731943221360,42.28312952,242.28,242.19,12.28312952]
[1731943221534,42.28312952,242.28,242.24,12.28312952]
[1731943221535,30.0,242.28,242.24,12.28312952]
[1731943221879,24.12153862,242.25,242.15,24.65287721]
[1731943222155,12.28312952,242.19,242.11,24.65287721]
[1731943222363,12.28312952,242.19,242.08,12.28312952]
[1731943222546,19.66599299,242.19,242.1,19.66599299]
[1731943222744,19.66599299,242.21,242.12,19.66599299]
[1731943222949,4.1288,242.2,242.12,19.66599299]
[1731943223544,4.1288,242.2,242.08,10.3271]
[1731943223545,30.0,242.18,242.1,19.66599299]
[1731943224638,30.0,242.18,242.12,19.66599299]
[1731943224846,4.1288,242.2,242.12,19.66599299]
[1731943225173,19.66599299,242.26,242.17,19.66599299]
[1731943225344,19.66599299,242.28,242.19,19.66599299]
[1731943225761,4.1272,242.29,242.19,19.66599299]
[1731943226452,19.66599299,242.26,242.15,19.66599299]
[1731943226644,19.66599299,242.24,242.15,19.66599299]
[1731943227408,19.66599299,242.26,242.17,19.66599299]
[1731943227744,23.79379299,242.26,242.17,23.79529299]
[1731943228641,30.0,242.19,242.13,29.99099299]
[1731943228842,30.0,242.19,242.13,34.12089299]
[1731943229041,30.0,242.19,242.15,19.66599299]
[1731943229666,30.0,242.19,242.1,19.66599299]
[1731943230741,4.1291,242.18,242.1,19.66599299]
[1731943231066,30.0,242.16,242.1,19.66599299]
[1731943231445,4.1291,242.18,242.1,19.66599299]
[1731943231870,30.0,242.14,242.1,19.66599299]
[1731943232050,30.0,242.14,242.06,19.66599299]
[1731943232760,30.0,242.14,242.08,19.66599299]
[1731943233358,34.1298,242.14,242.08,19.66599299]
[1731943235385,53.79579299,242.14,242.06,19.66599299]
[1731943235550,19.66599299,242.1,242.02,4.1317]
[1731943235752,19.66599299,242.1,242.0,30.9914]
[1731943235753,49.66599299,242.08,242.0,10.3303]
[1731943236179,19.66599299,242.06,241.93,24.65287721]
[1731943236470,19.66599299,242.0,241.91,19.66599299]
[1731943236672,30.0,241.99,241.91,19.66599299]
[1731943237351,30.0,241.99,241.92,4.1335]
[1731943237861,30.0,241.99,241.93,19.66599299]
[1731943238657,30.0,241.99,241.95,19.66599299]
[1731943239256,30.0,241.99,241.97,19.66599299]
[1731943240561,30.0,241.99,241.97,23.79869299]
[1731943240967,30.0,241.99,241.91,19.66599299]
[1731943241189,19.66599299,241.96,241.89,19.66599299]
[1731943241365,30.0,241.95,241.86,23.80049299]
[1731943241761,30.0,241.95,241.88,19.66599299]
[1731943242788,30.0,241.95,241.92,19.66599299]
[1731943242989,30.0,241.95,241.94,19.66599299]
[1731943244061,30.0,241.95,241.94,43.56836699]
[1731943244282,30.0,241.95,241.94,63.66204161]
[1731943244490,23.79689299,242.08,241.95,23.776884]
[1731943244790,23.79689299,242.08,241.98,19.66599299]
[1731943245865,19.66599299,242.05,241.96,34.13109299]
[1731943246294,19.66599299,242.03,241.96,10.3322]
[1731943246872,4.1318,242.02,241.96,10.3322]
[1731943247581,30.0,241.98,241.96,10.3322]
[1731943248084,4.1318,242.02,241.96,10.3322]
[1731943248399,19.66599299,241.97,241.88,19.66599299]
[1731943248702,19.66599299,242.01,241.92,19.66599299]
[1731943248870,4.1318,242.02,241.94,19.66599299]
[1731943249067,19.66599299,242.03,241.94,19.66599299]
[1731943249305,23.79769299,242.03,241.94,19.66599299]
[1731943249798,23.79749299,242.05,241.96,19.66599299]
[1731943249969,19.66599299,242.03,241.94,19.66599299]
[1731943250366,23.79779299,242.03,241.95,4.133]
[1731943250867,19.66599299,242.05,241.96,19.66599299]
[1731943251776,19.66599299,242.05,241.97,4.1327]
[1731943252101,19.66599299,242.03,241.95,14.4656]
[1731943253291,19.66599299,242.03,241.95,10.3327]
[1731943253498,19.66599299,242.01,241.95,10.3327]
[1731943253805,19.66599299,241.99,241.9,30.00049299]
[1731943253977,19.66599299,241.97,241.9,14.4682]
[1731943254976,19.66599299,241.97,241.9,10.3345]
[1731943255191,19.66599299,241.95,241.86,23.80039299]
[1731943255795,19.66599299,241.95,241.86,34.13689299]
[1731943256098,23.79919299,241.95,241.86,14.4709]
[1731943256400,23.79919299,241.95,241.86,34.13689299]
[1731943256595,80.3292,242.03,241.88,19.66599299]
[1731943256596,24.22547462,242.02,241.88,19.66599299]
[1731943256780,19.66599299,241.98,241.88,19.66599299]
[1731943256984,30.0,241.93,241.88,19.66599299]
[1731943257997,30.0,241.93,241.89,4.1341]
[1731943258204,30.0,241.93,241.86,10.3365]
[1731943258495,30.0,241.93,241.87,4.1343]
[1731943259474,30.0,241.93,241.88,19.66599299]
[1731943259976,30.0,241.93,241.86,30.00249299]
[1731943261393,30.0,241.93,241.86,34.13709299]
[1731943261975,34.1334,241.93,241.86,14.4711]
[1731943262176,19.66599299,241.92,241.86,14.4711]
[1731943262410,19.66599299,241.9,241.84,4.1348]
[1731943262581,19.66599299,241.9,241.81,14.4737]
[1731943263175,19.66599299,241.86,241.76,19.66599299]
[1731943263471,19.66599299,241.84,241.76,10.3407]
[1731943263702,19.66599299,241.84,241.76,30.00669299]
[1731943263881,23.80099299,241.84,241.76,30.00669299]
[1731943264287,30.0,241.83,241.76,30.00669299]
[1731943264687,19.66599299,241.77,241.68,6.99749317]
[1731943264889,19.66599299,241.81,241.72,19.66599299]
[1731943265290,19.66599299,241.81,241.68,14.4818]
[1731943265291,25.2279,241.82,241.74,19.66599299]
[1731943265602,25.2279,241.82,241.68,34.14779299]
[1731943265603,23.80139299,241.81,241.72,19.66599299]
[1731943265777,30.0,241.76,241.74,19.66599299]
[1731943265987,7.2074,241.82,241.74,19.66599299]
[1731943266181,11.3427,241.82,241.74,19.66599299]
[1731943266385,19.66599299,241.81,241.72,34.14539299]
[1731943266691,11.3427,241.82,241.74,19.66599299]
[1731943266876,19.66599299,241.81,241.72,34.14539299]
[1731943267082,19.66599299,241.79,241.72,10.3425]
[1731943267273,19.66599299,241.79,241.7,23.80319299]
[1731943268013,4.1357,241.8,241.72,19.66599299]
[1731943268173,11.3427,241.82,241.74,19.66599299]
[1731943268579,17.3844,241.87,241.78,19.66599299]
[1731943268580,37.05039299,241.87,241.78,19.66599299]
[1731943268782,6.5821,241.88,241.8,19.66599299]
[1731943269589,10.7164,241.88,241.8,23.80159299]
[1731943269994,19.66599299,241.87,241.8,4.1356]
[1731943270203,6.5821,241.88,241.8,23.80159299]
[1731943270509,19.66599299,241.89,241.8,34.14069299]
[1731943271208,19.66599299,241.91,241.82,19.66599299]
[1731943271413,30.79409299,241.93,241.84,19.66599299]
[1731943271604,30.79409299,241.93,241.84,30.00309299]
[1731943271805,19.66599299,241.91,241.84,10.3371]
[1731943272011,19.66599299,241.89,241.84,10.3371]
[1731943272207,19.66599299,241.91,241.84,10.3371]
[1731943272395,30.79409299,241.93,241.84,30.00309299]
[1731943272603,11.1281,241.93,241.84,10.3371]
[1731943272800,19.66599299,241.91,241.82,23.80119299]
[1731943273494,19.66599299,241.91,241.82,19.66599299]
[1731943273689,4.1339,241.9,241.82,19.66599299]
[1731943273912,19.66599299,241.89,241.81,4.1354]
[1731943275319,23.80009299,241.89,241.79,14.4747]
[1731943275487,23.80009299,241.89,241.74,10.3412]
[1731943275488,19.66599299,241.8,241.74,10.3412]
[1731943275692,19.66599299,241.8,241.74,14.4778]
[1731943276624,30.0,241.79,241.74,14.4778]
[1731943278020,30.0,241.79,241.72,23.80289299]
[1731943279944,30.0,241.79,241.72,34.14539299]
[1731943281320,30.0,241.79,241.74,19.66599299]
[1731943281826,30.0,241.79,241.78,19.66599299]
[1731943282119,30.0,241.79,241.78,23.80189299]
[1731943282322,19.66599299,241.91,241.78,34.14179299]
[1731943282505,19.66599299,241.91,241.82,19.66599299]
[1731943282704,30.0,241.83,241.82,19.66599299]
[1731943283221,26.66059299,241.93,241.82,19.66599299]
[1731943283222,30.79409299,241.93,241.82,19.66599299]
[1731943284004,19.66599299,241.88,241.8,19.66599299]
[1731943284529,19.66599299,241.88,241.69,20.27646712]
[1731943284530,19.66599299,241.85,241.76,19.66599299]
[1731943284728,19.66599299,241.77,241.69,17.4742]
[1731943284935,19.66599299,241.75,241.7,10.3434]
[1731943285222,19.66599299,241.75,241.7,14.4807]
[1731943285822,19.66599299,241.75,241.66,19.66599299]
[1731943285823,19.66599299,241.75,241.67,4.1377]
[1731943286027,30.0,241.74,241.67,4.1377]
[1731943286229,30.0,241.74,241.67,14.4823]
[1731943287001,19.66599299,241.73,241.67,14.4823]
[1731943287207,30.0,241.74,241.68,23.776884]
[1731943287500,19.66599299,241.75,241.68,23.776884]
[1731943288322,19.66599299,241.81,241.72,19.66599299]
[1731943288503,19.66599299,241.82,241.73,23.776884]
[1731943288698,19.66599299,241.82,241.75,23.776884]
[1731943288899,19.66599299,241.76,241.69,14.4813]
[1731943289204,19.66599299,241.72,241.65,14.4837]
[1731943290945,19.66599299,241.74,241.65,34.14969299]
[1731943291230,19.66599299,241.75,241.65,34.14969299]
[1731943291526,19.66599299,241.73,241.65,34.14969299]
[1731943291735,19.66599299,241.71,241.65,14.4837]
[1731943292725,19.66599299,241.71,241.65,10.3455]